[Event "*** Titled Tuesday Blitz"]
[Site "Chess.com"]
[Date "2020.05.26"]
[Round "7"]
[White "SamuelGhimpu2003"]
[Black "miruna_daria28"]
[Result "1-0"]
[WhiteElo "2564"]
[BlackElo "2265"]
[TimeControl "180+1"]
[EndTime "11:21:20 PDT"]
[Termination "SamuelGhimpu2003 won on time"]

1. f4 {[%clk 0:03:00.4]} 1... d5 {[%clk 0:02:55.6]} 2. Nf3 {[%clk 0:03:00.4]}
2... Nf6 {[%clk 0:02:49.3]} 3. g3 {[%clk 0:03:00.5]} 3... c5 {[%clk 0:02:48.6]}
4. Bg2 {[%clk 0:03:00.3]} 4... g6 {[%clk 0:02:48.4]} 5. O-O {[%clk 0:03:00.5]}
5... Bg7 {[%clk 0:02:48.1]} 6. d3 {[%clk 0:03:01.4]} 6... O-O {[%clk 0:02:47.9]}
7. Qe1 {[%clk 0:03:02.3]} 7... Re8 {[%clk 0:02:46]} 8. e4 {[%clk 0:03:02]} 8...
dxe4 {[%clk 0:02:43.8]} 9. dxe4 {[%clk 0:03:02.9]} 9... e5 {[%clk 0:02:41.4]}
10. Nxe5 {[%clk 0:02:41.3]} 10... Rxe5 {[%clk 0:02:14.7]} 11. fxe5 {[%clk
0:02:32]} 11... Ng4 {[%clk 0:02:11.9]} 12. Nc3 {[%clk 0:02:31.9]} 12... Nxe5
{[%clk 0:02:02.1]} 13. Nd5 {[%clk 0:02:30.9]} 13... Be6 {[%clk 0:01:46.2]} 14.
Be3 {[%clk 0:02:25.3]} 14... b6 {[%clk 0:01:36.4]} 15. Rd1 {[%clk 0:02:22.2]}
15... Nbd7 {[%clk 0:01:25.6]} 16. b3 {[%clk 0:02:10.3]} 16... Ng4 {[%clk
0:01:17.4]} 17. Bc1 {[%clk 0:02:09.6]} 17... Rc8 {[%clk 0:00:56.8]} 18. Kh1
{[%clk 0:02:03.8]} 18... c4 {[%clk 0:00:51.9]} 19. Nf4 {[%clk 0:01:48.3]} 19...
cxb3 {[%clk 0:00:38.2]} 20. Nxe6 {[%clk 0:01:37.5]} 20... fxe6 {[%clk
0:00:37.4]} 21. cxb3 {[%clk 0:01:27.4]} 21... Rc2 {[%clk 0:00:20]} 22. Rf4
{[%clk 0:00:26.2]} 22... Nge5 {[%clk 0:00:15.4]} 23. Rf2 {[%clk 0:00:24.4]}
23... Rxf2 {[%clk 0:00:13.5]} 24. Qxf2 {[%clk 0:00:25.3]} 24... Qe7 {[%clk
0:00:14.1]} 25. Bb2 {[%clk 0:00:20.6]} 25... Nc5 {[%clk 0:00:13]} 26. Qd4 {[%clk
0:00:12.2]} 26... Bf6 {[%clk 0:00:09.5]} 27. Qd2 {[%clk 0:00:08.4]} 27... Kg7
{[%clk 0:00:07]} 28. h3 {[%clk 0:00:08.1]} 28... Ncd3 {[%clk 0:00:05.7]} 29. Rf1
{[%clk 0:00:04.6]} 29... Nxb2 {[%clk 0:00:04.9]} 30. Qxb2 {[%clk 0:00:05.5]}
30... Nd7 {[%clk 0:00:02.5]} 31. Qe2 {[%clk 0:00:05.8]} 31... Ne5 {[%clk
0:00:02.4]} 32. Rd1 {[%clk 0:00:04.9]} 32... a5 {[%clk 0:00:02.5]} 33. Qe3
{[%clk 0:00:05.2]} 33... Qc7 {[%clk 0:00:01.4]} 34. Bf1 {[%clk 0:00:04.7]} 1-0

[Event "*** Titled Tuesday Blitz"]
[Site "Chess.com"]
[Date "2020.05.26"]
[Round "7"]
[White "Shield12"]
[Black "oneshot007"]
[Result "1-0"]
[WhiteElo "2794"]
[BlackElo "2441"]
[TimeControl "180+1"]
[EndTime "11:21:21 PDT"]
[Termination "Shield12 won on time"]

1. e4 {[%clk 0:03:00.9]} 1... g6 {[%clk 0:03:00.1]} 2. d4 {[%clk 0:03:00.7]}
2... Nf6 {[%clk 0:02:59.6]} 3. Nf3 {[%clk 0:03:01.6]} 3... Nxe4 {[%clk
0:02:58.6]} 4. Bd3 {[%clk 0:03:01.7]} 4... d5 {[%clk 0:02:51.7]} 5. O-O {[%clk
0:03:00.5]} 5... Bg7 {[%clk 0:02:48.7]} 6. Re1 {[%clk 0:03:00.7]} 6... Nd6
{[%clk 0:02:42.8]} 7. Nc3 {[%clk 0:02:59.5]} 7... c6 {[%clk 0:02:40.1]} 8. Bg5
{[%clk 0:02:58.8]} 8... f6 {[%clk 0:02:29.5]} 9. Bf4 {[%clk 0:02:58.4]} 9... O-O
{[%clk 0:02:27]} 10. h3 {[%clk 0:02:58.4]} 10... Re8 {[%clk 0:02:23.9]} 11. Na4
{[%clk 0:02:45.6]} 11... Nf7 {[%clk 0:02:20.7]} 12. Bxb8 {[%clk 0:02:20.7]}
12... Rxb8 {[%clk 0:02:19]} 13. c4 {[%clk 0:02:20.7]} 13... e5 {[%clk
0:02:15.5]} 14. cxd5 {[%clk 0:02:20.6]} 14... cxd5 {[%clk 0:02:13.1]} 15. Bb5
{[%clk 0:02:19.8]} 15... Rf8 {[%clk 0:02:03.5]} 16. dxe5 {[%clk 0:02:17.8]}
16... fxe5 {[%clk 0:02:03.6]} 17. Bf1 {[%clk 0:02:09.2]} 17... e4 {[%clk
0:02:01.5]} 18. Nd4 {[%clk 0:02:07.7]} 18... Qf6 {[%clk 0:01:58.6]} 19. Nb3
{[%clk 0:02:02.9]} 19... Ng5 {[%clk 0:01:28.3]} 20. Qxd5+ {[%clk 0:01:57.6]}
20... Be6 {[%clk 0:01:24.4]} 21. Qd2 {[%clk 0:01:57.2]} 21... Bxh3 {[%clk
0:01:05.5]} 22. Nac5 {[%clk 0:01:52]} 22... Rbd8 {[%clk 0:00:48.4]} 23. Qe3
{[%clk 0:01:38.2]} 23... b6 {[%clk 0:00:46.8]} 24. Na4 {[%clk 0:01:16.2]} 24...
Bg4 {[%clk 0:00:34]} 25. Nc3 {[%clk 0:01:15.8]} 25... Rde8 {[%clk 0:00:25.7]}
26. Be2 {[%clk 0:01:13.4]} 26... Bf3 {[%clk 0:00:23.8]} 27. Nd5 {[%clk
0:01:09.7]} 27... Qf5 {[%clk 0:00:20.6]} 28. Nf4 {[%clk 0:00:33.2]} 28... Qg4
{[%clk 0:00:16.4]} 29. Nd4 {[%clk 0:00:25.4]} 29... Nh3+ {[%clk 0:00:13.4]} 30.
Kf1 {[%clk 0:00:15.9]} 30... Nxf4 {[%clk 0:00:13.4]} 31. Bxf3 {[%clk 0:00:15.7]}
31... exf3 {[%clk 0:00:11.4]} 32. Qxf3 {[%clk 0:00:16.4]} 32... Qc8 {[%clk
0:00:05.4]} 33. Nc6 {[%clk 0:00:13.9]} 33... Ne6 {[%clk 0:00:04.3]} 34. Qd5
{[%clk 0:00:13.3]} 34... Rf6 {[%clk 0:00:02.7]} 35. Rac1 {[%clk 0:00:12.3]}
35... Qa6+ {[%clk 0:00:02.9]} 36. Kg1 {[%clk 0:00:12]} 1-0

[Event "*** Titled Tuesday Blitz"]
[Site "Chess.com"]
[Date "2020.05.26"]
[Round "7"]
[White "Luibov_AN"]
[Black "CyberneticLion"]
[Result "0-1"]
[WhiteElo "2070"]
[BlackElo "2448"]
[TimeControl "180+1"]
[EndTime "11:21:21 PDT"]
[Termination "CyberneticLion won by resignation"]

1. d4 {[%clk 0:02:01]} 1... d5 {[%clk 0:02:26.5]} 2. c4 {[%clk 0:01:47.5]} 2...
e6 {[%clk 0:02:20.8]} 3. Nf3 {[%clk 0:01:47.6]} 3... Nf6 {[%clk 0:02:19.3]} 4.
Nc3 {[%clk 0:01:47.8]} 4... c6 {[%clk 0:02:19.3]} 5. e3 {[%clk 0:01:47.8]} 5...
Nbd7 {[%clk 0:02:18.8]} 6. Qc2 {[%clk 0:01:47.5]} 6... Bd6 {[%clk 0:02:17]} 7.
b3 {[%clk 0:01:47.8]} 7... O-O {[%clk 0:02:16.2]} 8. Bd3 {[%clk 0:01:47.9]} 8...
e5 {[%clk 0:02:14.5]} 9. dxe5 {[%clk 0:01:46.6]} 9... Nxe5 {[%clk 0:02:12.6]}
10. Nxe5 {[%clk 0:01:46]} 10... Bxe5 {[%clk 0:02:08]} 11. cxd5 {[%clk
0:01:46.2]} 11... Nxd5 {[%clk 0:01:53.5]} 12. Bb2 {[%clk 0:01:45.3]} 12... Qa5
{[%clk 0:01:13.8]} 13. Rc1 {[%clk 0:01:36.8]} 13... Nb4 {[%clk 0:01:11.3]} 14.
Bxh7+ {[%clk 0:01:35.4]} 14... Kh8 {[%clk 0:01:10.2]} 15. Qb1 {[%clk 0:01:33.1]}
15... Nxa2 {[%clk 0:01:05.8]} 16. O-O {[%clk 0:01:16.1]} 16... Nxc3 {[%clk
0:01:01.2]} 17. Bxc3 {[%clk 0:01:14.7]} 17... Bxc3 {[%clk 0:01:02.1]} 18. Bd3
{[%clk 0:01:05.6]} 18... Bf6 {[%clk 0:00:55.5]} 19. Qc2 {[%clk 0:01:05]} 19...
Be6 {[%clk 0:00:54.3]} 20. Rb1 {[%clk 0:01:00.2]} 20... Qc3 {[%clk 0:00:48.2]}
21. Qe2 {[%clk 0:00:59.2]} 21... g6 {[%clk 0:00:43.1]} 22. Rfc1 {[%clk
0:00:54.5]} 22... Qb4 {[%clk 0:00:39]} 23. Qf3 {[%clk 0:00:48.8]} 23... Kg7
{[%clk 0:00:38.1]} 24. h3 {[%clk 0:00:46.2]} 24... Rfd8 {[%clk 0:00:33.7]} 25.
Bc4 {[%clk 0:00:40.5]} 25... Bxc4 {[%clk 0:00:31.8]} 26. Rxc4 {[%clk 0:00:40.5]}
26... Qd6 {[%clk 0:00:23.9]} 27. g4 {[%clk 0:00:38.7]} 27... Qd5 {[%clk
0:00:23.1]} 28. Qf4 {[%clk 0:00:31]} 28... Be5 {[%clk 0:00:20.5]} 29. Qe4 {[%clk
0:00:25]} 29... Qxe4 {[%clk 0:00:20.2]} 30. Rxe4 {[%clk 0:00:25.2]} 30... Bf6
{[%clk 0:00:19.5]} 31. f4 {[%clk 0:00:25.3]} 31... Re8 {[%clk 0:00:19.7]} 32.
Rb4 {[%clk 0:00:24.3]} 32... b6 {[%clk 0:00:19.4]} 33. Kf2 {[%clk 0:00:24.5]}
33... c5 {[%clk 0:00:17.9]} 34. Ra4 {[%clk 0:00:24.7]} 34... a5 {[%clk
0:00:17.1]} 35. g5 {[%clk 0:00:25]} 35... Bc3 {[%clk 0:00:16.5]} 36. Ra2 {[%clk
0:00:25.1]} 36... Rad8 {[%clk 0:00:15.9]} 37. Re2 {[%clk 0:00:24.6]} 37... Rd3
{[%clk 0:00:15.7]} 38. h4 {[%clk 0:00:24.9]} 38... b5 {[%clk 0:00:15.1]} 39. Rh1
{[%clk 0:00:22.6]} 39... a4 {[%clk 0:00:14.4]} 40. bxa4 {[%clk 0:00:22.7]} 40...
bxa4 {[%clk 0:00:15.3]} 41. Rb1 {[%clk 0:00:22.7]} 41... a3 {[%clk 0:00:15.1]}
42. h5 {[%clk 0:00:21.2]} 42... gxh5 {[%clk 0:00:14.7]} 43. Rh1 {[%clk
0:00:20.9]} 43... Rdxe3 {[%clk 0:00:12.3]} 44. Rxe3 {[%clk 0:00:21]} 44... Bd4
{[%clk 0:00:12.6]} 45. Re1 {[%clk 0:00:20.2]} 45... Rxe3 {[%clk 0:00:12.2]} 46.
Rxe3 {[%clk 0:00:20.7]} 46... Bxe3+ {[%clk 0:00:13.1]} 0-1

[Event "*** Titled Tuesday Blitz"]
[Site "Chess.com"]
[Date "2020.05.26"]
[Round "7"]
[White "heartofatiger"]
[Black "ljuks68"]
[Result "1-0"]
[WhiteElo "2501"]
[BlackElo "2340"]
[TimeControl "180+1"]
[EndTime "11:21:23 PDT"]
[Termination "heartofatiger won by checkmate"]

1. Nf3 {[%clk 0:03:00.9]} 1... d5 {[%clk 0:02:59.7]} 2. g3 {[%clk 0:02:59.5]}
2... Nc6 {[%clk 0:02:59.8]} 3. d4 {[%clk 0:02:58.4]} 3... Bg4 {[%clk 0:02:59.7]}
4. Nbd2 {[%clk 0:02:58.6]} 4... Qd7 {[%clk 0:02:55]} 5. h3 {[%clk 0:02:58.7]}
5... Bf5 {[%clk 0:02:54.6]} 6. c3 {[%clk 0:02:57.3]} 6... Nf6 {[%clk 0:02:52.6]}
7. Bg2 {[%clk 0:02:56.7]} 7... h6 {[%clk 0:02:48.8]} 8. b4 {[%clk 0:02:56.3]}
8... a6 {[%clk 0:02:43.3]} 9. a4 {[%clk 0:02:55.9]} 9... Ne4 {[%clk 0:02:42.6]}
10. Bb2 {[%clk 0:02:53.5]} 10... f6 {[%clk 0:02:37.5]} 11. Nh4 {[%clk
0:02:42.8]} 11... Bh7 {[%clk 0:02:34.4]} 12. Nxe4 {[%clk 0:02:42.8]} 12... dxe4
{[%clk 0:02:34.2]} 13. Bf1 {[%clk 0:02:20.9]} 13... e5 {[%clk 0:02:32.6]} 14. e3
{[%clk 0:02:18.6]} 14... exd4 {[%clk 0:02:20.6]} 15. exd4 {[%clk 0:02:18.1]}
15... Bd6 {[%clk 0:02:08]} 16. Qh5+ {[%clk 0:02:11.5]} 16... Qf7 {[%clk
0:01:42.6]} 17. Qxf7+ {[%clk 0:02:10.2]} 17... Kxf7 {[%clk 0:01:42.5]} 18. Bc4+
{[%clk 0:02:11.1]} 18... Ke7 {[%clk 0:01:41.1]} 19. g4 {[%clk 0:02:04.6]} 19...
e3 {[%clk 0:01:31.8]} 20. Nf5+ {[%clk 0:01:59.2]} 20... Bxf5 {[%clk 0:01:30.2]}
21. gxf5 {[%clk 0:01:59.7]} 21... exf2+ {[%clk 0:01:29.3]} 22. Kxf2 {[%clk
0:02:00.6]} 22... Rhe8 {[%clk 0:01:29.3]} 23. b5 {[%clk 0:01:40.3]} 23... axb5
{[%clk 0:01:10.7]} 24. axb5 {[%clk 0:01:39.5]} 24... Rxa1 {[%clk 0:01:09.3]} 25.
Rxa1 {[%clk 0:01:37.5]} 25... Nd8 {[%clk 0:01:09.3]} 26. Bd5 {[%clk 0:01:33.2]}
26... Kd7 {[%clk 0:01:05.6]} 27. Rg1 {[%clk 0:01:22.5]} 27... Re7 {[%clk
0:01:03.6]} 28. Kf3 {[%clk 0:01:19.9]} 28... c6 {[%clk 0:01:01.6]} 29. Bc4
{[%clk 0:01:16.7]} 29... Kc7 {[%clk 0:00:54.3]} 30. Bc1 {[%clk 0:01:12.7]} 30...
Kb6 {[%clk 0:00:49.9]} 31. Bd2 {[%clk 0:01:08.6]} 31... c5 {[%clk 0:00:41.3]}
32. Ra1 {[%clk 0:00:56.6]} 32... Nf7 {[%clk 0:00:34.4]} 33. h4 {[%clk
0:00:53.1]} 33... Kc7 {[%clk 0:00:18.6]} 34. Ra8 {[%clk 0:00:49.4]} 34... cxd4
{[%clk 0:00:14.2]} 35. cxd4 {[%clk 0:00:48.9]} 35... Bh2 {[%clk 0:00:13.7]} 36.
Ba5+ {[%clk 0:00:37.4]} 36... b6 {[%clk 0:00:09.3]} 37. Ra7+ {[%clk 0:00:37.3]}
37... Kd8 {[%clk 0:00:08.9]} 38. Bxb6+ {[%clk 0:00:34.6]} 38... Ke8 {[%clk
0:00:08.3]} 39. Ra8+ {[%clk 0:00:32]} 39... Kd7 {[%clk 0:00:07.4]} 40. Be6+
{[%clk 0:00:28.4]} 40... Kd6 {[%clk 0:00:07.4]} 41. Rc8 {[%clk 0:00:18.7]} 41...
Rb7 {[%clk 0:00:02.7]} 42. Bc5# {[%clk 0:00:15.9]} 1-0

[Event "*** Titled Tuesday Blitz"]
[Site "Chess.com"]
[Date "2020.05.26"]
[Round "7"]
[White "cukin84"]
[Black "DishonorOnYourCow"]
[Result "1-0"]
[WhiteElo "2190"]
[BlackElo "2300"]
[TimeControl "180+1"]
[EndTime "11:21:23 PDT"]
[Termination "cukin84 won by checkmate"]

1. e4 {[%clk 0:03:00.9]} 1... c5 {[%clk 0:02:57]} 2. Nc3 {[%clk 0:03:00.4]} 2...
Nc6 {[%clk 0:02:55.4]} 3. Bb5 {[%clk 0:02:59.7]} 3... Nd4 {[%clk 0:02:54.3]} 4.
Bc4 {[%clk 0:02:59.1]} 4... e6 {[%clk 0:02:51.4]} 5. Nf3 {[%clk 0:02:58.3]} 5...
g6 {[%clk 0:02:39]} 6. Nxd4 {[%clk 0:02:55.4]} 6... cxd4 {[%clk 0:02:38.4]} 7.
Nb5 {[%clk 0:02:54.3]} 7... Qb6 {[%clk 0:02:31.9]} 8. c3 {[%clk 0:02:51.9]} 8...
dxc3 {[%clk 0:02:12.2]} 9. bxc3 {[%clk 0:02:49.5]} 9... a6 {[%clk 0:02:08.5]}
10. Nd4 {[%clk 0:02:42.3]} 10... Bg7 {[%clk 0:02:05.6]} 11. O-O {[%clk
0:02:41.6]} 11... Ne7 {[%clk 0:02:02]} 12. Ba3 {[%clk 0:02:40.6]} 12... d6
{[%clk 0:01:53.3]} 13. Rb1 {[%clk 0:02:38.4]} 13... Qc7 {[%clk 0:01:51.9]} 14.
Bb3 {[%clk 0:02:26]} 14... O-O {[%clk 0:01:43.3]} 15. f4 {[%clk 0:02:25.5]}
15... b5 {[%clk 0:01:37.6]} 16. Kh1 {[%clk 0:02:07.1]} 16... Bb7 {[%clk
0:01:36.2]} 17. Qe2 {[%clk 0:01:59.2]} 17... Nc6 {[%clk 0:01:24.2]} 18. Nxc6
{[%clk 0:01:56.8]} 18... Bxc6 {[%clk 0:01:16.9]} 19. f5 {[%clk 0:01:56.5]} 19...
exf5 {[%clk 0:00:48.7]} 20. exf5 {[%clk 0:01:54.1]} 20... Rae8 {[%clk
0:00:47.6]} 21. Qg4 {[%clk 0:01:50.4]} 21... Be4 {[%clk 0:00:31.8]} 22. f6
{[%clk 0:01:00]} 22... Bh8 {[%clk 0:00:28.8]} 23. Rbe1 {[%clk 0:00:55.8]} 23...
Bd3 {[%clk 0:00:20.2]} 24. Rg1 {[%clk 0:00:52.3]} 24... Bxf6 {[%clk 0:00:15.2]}
25. Qf3 {[%clk 0:00:51.5]} 25... Bf5 {[%clk 0:00:14.7]} 26. g4 {[%clk
0:00:47.4]} 26... Bd7 {[%clk 0:00:13.3]} 27. Rxe8 {[%clk 0:00:40.1]} 27... Bc6
{[%clk 0:00:12.3]} 28. Bd5 {[%clk 0:00:39.2]} 28... Bxd5 {[%clk 0:00:11.2]} 29.
Qxd5 {[%clk 0:00:39.1]} 29... Rxe8 {[%clk 0:00:11]} 30. Bxd6 {[%clk 0:00:33.7]}
30... Qd7 {[%clk 0:00:09]} 31. c4 {[%clk 0:00:28.2]} 31... bxc4 {[%clk
0:00:08.4]} 32. Qc5 {[%clk 0:00:26.6]} 32... Rd8 {[%clk 0:00:07.5]} 33. Bf4
{[%clk 0:00:25.6]} 33... Qb7+ {[%clk 0:00:06.5]} 34. Rg2 {[%clk 0:00:24.1]}
34... Re8 {[%clk 0:00:06.2]} 35. h3 {[%clk 0:00:23.5]} 35... Re4 {[%clk
0:00:05.2]} 36. Bh6 {[%clk 0:00:20.4]} 36... Re8 {[%clk 0:00:03.5]} 37. Kh2
{[%clk 0:00:19.5]} 37... Be5+ {[%clk 0:00:03.2]} 38. Kh1 {[%clk 0:00:18.9]}
38... Bf6 {[%clk 0:00:02]} 39. g5 {[%clk 0:00:18.2]} 39... Be7 {[%clk
0:00:01.1]} 40. Qd4 {[%clk 0:00:17.4]} 40... Bf8 {[%clk 0:00:02]} 41. h4 {[%clk
0:00:15.4]} 41... Re7 {[%clk 0:00:01.5]} 42. Bxf8 {[%clk 0:00:14.8]} 42... Kxf8
{[%clk 0:00:02.3]} 43. Qh8# {[%clk 0:00:13.4]} 1-0

[Event "*** Titled Tuesday Blitz"]
[Site "Chess.com"]
[Date "2020.05.26"]
[Round "7"]
[White "Slovak_fighter2000"]
[Black "Gentle_Emperor"]
[Result "1-0"]
[WhiteElo "2482"]
[BlackElo "2319"]
[TimeControl "180+1"]
[EndTime "11:21:24 PDT"]
[Termination "Slovak_fighter2000 won on time"]

1. d4 {[%clk 0:03:00.9]} 1... Nf6 {[%clk 0:02:59.2]} 2. c4 {[%clk 0:03:01]} 2...
e6 {[%clk 0:02:59.3]} 3. Nf3 {[%clk 0:03:00]} 3... d5 {[%clk 0:02:59.4]} 4. Nc3
{[%clk 0:02:59.5]} 4... c6 {[%clk 0:02:57.4]} 5. e3 {[%clk 0:02:58.7]} 5... Bd6
{[%clk 0:02:57.4]} 6. Qc2 {[%clk 0:02:58.2]} 6... Nbd7 {[%clk 0:02:56.9]} 7. g4
{[%clk 0:02:58.3]} 7... Nxg4 {[%clk 0:02:55.6]} 8. Rg1 {[%clk 0:02:58.1]} 8...
Qf6 {[%clk 0:02:48.5]} 9. Rxg4 {[%clk 0:02:55.8]} 9... Qxf3 {[%clk 0:02:48.7]}
10. Rxg7 {[%clk 0:02:55.4]} 10... Nf6 {[%clk 0:02:45.4]} 11. Rg2 {[%clk
0:02:26.1]} 11... h5 {[%clk 0:02:41.8]} 12. Qe2 {[%clk 0:02:21.8]} 12... Qf5
{[%clk 0:02:34.9]} 13. Qd3 {[%clk 0:02:19.9]} 13... Qxd3 {[%clk 0:02:26.1]} 14.
Bxd3 {[%clk 0:02:19.4]} 14... h4 {[%clk 0:02:27]} 15. h3 {[%clk 0:02:17.9]}
15... e5 {[%clk 0:02:19.7]} 16. cxd5 {[%clk 0:02:14.7]} 16... Bxh3 {[%clk
0:02:17.2]} 17. Rg1 {[%clk 0:02:13.6]} 17... cxd5 {[%clk 0:02:17]} 18. dxe5
{[%clk 0:02:13.1]} 18... Bxe5 {[%clk 0:02:17.3]} 19. Bd2 {[%clk 0:02:13.7]}
19... Bh2 {[%clk 0:02:05.9]} 20. Rh1 {[%clk 0:02:10.7]} 20... Ng4 {[%clk
0:02:06.2]} 21. O-O-O {[%clk 0:01:51.2]} 21... Bg2 {[%clk 0:02:03.3]} 22. Bf5
{[%clk 0:01:41.6]} 22... Bxh1 {[%clk 0:01:41.4]} 23. Rxh1 {[%clk 0:01:42.5]}
23... Nh6 {[%clk 0:01:39.2]} 24. Bh3 {[%clk 0:01:41.2]} 24... Be5 {[%clk
0:01:37.5]} 25. Nxd5 {[%clk 0:01:40.8]} 25... Rd8 {[%clk 0:01:29.4]} 26. e4
{[%clk 0:01:37.1]} 26... f5 {[%clk 0:01:14.2]} 27. f3 {[%clk 0:01:29.1]} 27...
Bg3 {[%clk 0:00:50.2]} 28. Bc3 {[%clk 0:01:25.2]} 28... Rxd5 {[%clk 0:00:28.8]}
29. exd5 {[%clk 0:01:23.6]} 29... Rg8 {[%clk 0:00:28.1]} 30. Bd2 {[%clk
0:01:16.5]} 30... Nf7 {[%clk 0:00:27.5]} 31. Bxf5 {[%clk 0:01:14.4]} 31... Nd6
{[%clk 0:00:26.4]} 32. Be6 {[%clk 0:01:14]} 32... Rf8 {[%clk 0:00:25.3]} 33. Bg5
{[%clk 0:01:08.4]} 33... Rxf3 {[%clk 0:00:22.2]} 34. Bxh4 {[%clk 0:01:08.4]}
34... Bf4+ {[%clk 0:00:22.4]} 35. Kc2 {[%clk 0:01:07.2]} 35... Ne4 {[%clk
0:00:19.9]} 36. Rg1 {[%clk 0:01:03.5]} 36... Bg3 {[%clk 0:00:13.9]} 37. Bxg3
{[%clk 0:00:57.4]} 37... Nxg3 {[%clk 0:00:14.8]} 38. d6 {[%clk 0:00:45.6]} 38...
Rf6 {[%clk 0:00:12]} 39. Bh3 {[%clk 0:00:31.6]} 39... Ne4 {[%clk 0:00:03.7]} 40.
d7+ {[%clk 0:00:29.7]} 40... Ke7 {[%clk 0:00:03]} 41. Rg8 {[%clk 0:00:28.1]}
41... Rd6 {[%clk 0:00:01.4]} 42. Re8+ {[%clk 0:00:27.2]} 42... Kf7 {[%clk
0:00:01.6]} 43. Rxe4 {[%clk 0:00:25]} 1-0

[Event "*** Titled Tuesday Blitz"]
[Site "Chess.com"]
[Date "2020.05.26"]
[Round "7"]
[White "AsselLesbekova"]
[Black "PavelShkapenko"]
[Result "1-0"]
[WhiteElo "2285"]
[BlackElo "2628"]
[TimeControl "180+1"]
[EndTime "11:21:24 PDT"]
[Termination "AsselLesbekova won by resignation"]

1. e4 {[%clk 0:03:00.5]} 1... c5 {[%clk 0:02:58.4]} 2. c4 {[%clk 0:02:59.8]}
2... Nc6 {[%clk 0:02:57.5]} 3. Nc3 {[%clk 0:02:59.1]} 3... g6 {[%clk 0:02:57.6]}
4. g3 {[%clk 0:02:59.4]} 4... Bg7 {[%clk 0:02:58.1]} 5. Bg2 {[%clk 0:02:59.5]}
5... e6 {[%clk 0:02:58.2]} 6. Nge2 {[%clk 0:02:59.9]} 6... Nge7 {[%clk
0:02:58.7]} 7. O-O {[%clk 0:03:00.6]} 7... O-O {[%clk 0:02:59.1]} 8. d3 {[%clk
0:03:01.2]} 8... d6 {[%clk 0:02:55.7]} 9. Be3 {[%clk 0:02:59.7]} 9... Nd4 {[%clk
0:02:55.8]} 10. f4 {[%clk 0:02:59.6]} 10... f5 {[%clk 0:02:53.7]} 11. h3 {[%clk
0:02:59.3]} 11... Nec6 {[%clk 0:02:53.4]} 12. Kh2 {[%clk 0:02:59.1]} 12... Rb8
{[%clk 0:02:53.2]} 13. a4 {[%clk 0:02:59]} 13... Bd7 {[%clk 0:02:44.1]} 14. Rb1
{[%clk 0:02:58]} 14... a6 {[%clk 0:02:34.9]} 15. g4 {[%clk 0:02:52.5]} 15...
Nxe2 {[%clk 0:02:31.5]} 16. Nxe2 {[%clk 0:02:51.2]} 16... b5 {[%clk 0:02:23.6]}
17. axb5 {[%clk 0:02:47.5]} 17... axb5 {[%clk 0:02:23.7]} 18. exf5 {[%clk
0:02:36.3]} 18... exf5 {[%clk 0:02:17]} 19. g5 {[%clk 0:02:29.9]} 19... Qe7
{[%clk 0:02:02.4]} 20. Bg1 {[%clk 0:02:22.3]} 20... b4 {[%clk 0:01:46.7]} 21. d4
{[%clk 0:02:13.7]} 21... Rbd8 {[%clk 0:01:25.1]} 22. Re1 {[%clk 0:01:53.3]}
22... Kh8 {[%clk 0:01:21.2]} 23. dxc5 {[%clk 0:01:37.7]} 23... dxc5 {[%clk
0:01:21.2]} 24. Ng3 {[%clk 0:01:30.9]} 24... Qf7 {[%clk 0:01:13.3]} 25. Bd5
{[%clk 0:01:30.4]} 25... Be6 {[%clk 0:01:05.3]} 26. Rxe6 {[%clk 0:01:23.4]}
26... Nd4 {[%clk 0:01:00.8]} 27. Re5 {[%clk 0:01:08.7]} 27... Qc7 {[%clk
0:00:58.5]} 28. Bxd4 {[%clk 0:01:08.2]} 28... cxd4 {[%clk 0:00:58.1]} 29. Qxd4
{[%clk 0:01:05.3]} 29... h5 {[%clk 0:00:42.9]} 30. h4 {[%clk 0:01:01.1]} 30...
Kh7 {[%clk 0:00:36.7]} 31. Rbe1 {[%clk 0:00:59.4]} 31... Rfe8 {[%clk 0:00:33.3]}
32. b3 {[%clk 0:00:48.9]} 32... Qd6 {[%clk 0:00:21.8]} 33. Qa7 {[%clk
0:00:36.2]} 33... Rxe5 {[%clk 0:00:19.7]} 34. fxe5 {[%clk 0:00:32]} 34... Qf8
{[%clk 0:00:17.1]} 35. e6 {[%clk 0:00:29.4]} 35... Qd6 {[%clk 0:00:11.7]} 36. e7
{[%clk 0:00:27.2]} 36... Re8 {[%clk 0:00:11.2]} 37. Bf7 {[%clk 0:00:25.7]} 37...
Qf4 {[%clk 0:00:10.4]} 38. Bxe8 {[%clk 0:00:23]} 38... Qxh4+ {[%clk 0:00:09.9]}
39. Kg2 {[%clk 0:00:22.8]} 39... f4 {[%clk 0:00:10.4]} 40. Bxg6+ {[%clk
0:00:22.1]} 1-0

[Event "*** Titled Tuesday Blitz"]
[Site "Chess.com"]
[Date "2020.05.26"]
[Round "7"]
[White "dosto07"]
[Black "MartinMatthiesen"]
[Result "0-1"]
[WhiteElo "2150"]
[BlackElo "2379"]
[TimeControl "180+1"]
[EndTime "11:21:25 PDT"]
[Termination "MartinMatthiesen won on time"]

1. e4 {[%clk 0:03:00.9]} 1... c5 {[%clk 0:02:56.3]} 2. Nf3 {[%clk 0:02:58.8]}
2... d6 {[%clk 0:02:55.9]} 3. Bb5+ {[%clk 0:02:58.1]} 3... Bd7 {[%clk 0:02:54]}
4. Bxd7+ {[%clk 0:02:57.7]} 4... Nxd7 {[%clk 0:02:54.9]} 5. O-O {[%clk
0:02:51.1]} 5... Ngf6 {[%clk 0:02:54.6]} 6. Qe2 {[%clk 0:02:43]} 6... e6 {[%clk
0:02:51.8]} 7. c4 {[%clk 0:02:35.4]} 7... Be7 {[%clk 0:02:50.3]} 8. d4 {[%clk
0:02:30]} 8... cxd4 {[%clk 0:02:49.8]} 9. Nxd4 {[%clk 0:02:30]} 9... O-O {[%clk
0:02:50.4]} 10. Nc3 {[%clk 0:02:29.4]} 10... a6 {[%clk 0:02:49.4]} 11. b3 {[%clk
0:02:26.5]} 11... Qa5 {[%clk 0:02:45.1]} 12. Bb2 {[%clk 0:02:25]} 12... Rac8
{[%clk 0:02:44.3]} 13. Rad1 {[%clk 0:02:20.5]} 13... Rfd8 {[%clk 0:02:43.4]} 14.
f4 {[%clk 0:02:16.2]} 14... Qh5 {[%clk 0:02:15.4]} 15. Rf3 {[%clk 0:02:07.8]}
15... Bf8 {[%clk 0:01:34.7]} 16. Qf1 {[%clk 0:02:05.1]} 16... Nc5 {[%clk
0:00:56.3]} 17. Rh3 {[%clk 0:01:47.1]} 17... Qg4 {[%clk 0:00:49]} 18. Rg3 {[%clk
0:01:30.6]} 18... Qh5 {[%clk 0:00:46.8]} 19. Re1 {[%clk 0:01:00.1]} 19... d5
{[%clk 0:00:32.8]} 20. cxd5 {[%clk 0:00:53.5]} 20... h6 {[%clk 0:00:27]} 21. d6
{[%clk 0:00:49.2]} 21... Rxd6 {[%clk 0:00:25.5]} 22. Nf3 {[%clk 0:00:26.1]}
22... Rdd8 {[%clk 0:00:19.2]} 23. Ne5 {[%clk 0:00:22.7]} 23... Rd2 {[%clk
0:00:14.8]} 24. Bc1 {[%clk 0:00:16.8]} 24... Rc2 {[%clk 0:00:14.1]} 25. Rh3
{[%clk 0:00:14.8]} 25... Qxh3 {[%clk 0:00:14.2]} 26. gxh3 {[%clk 0:00:14.2]}
26... Rxc3 {[%clk 0:00:15.1]} 27. Re3 {[%clk 0:00:12.6]} 27... Ncxe4 {[%clk
0:00:14.8]} 28. Rxc3 {[%clk 0:00:11.9]} 28... Rxc3 {[%clk 0:00:14.8]} 29. Bb2
{[%clk 0:00:10.5]} 29... Rc2 {[%clk 0:00:14.3]} 30. Bd4 {[%clk 0:00:10]} 30...
Rxa2 {[%clk 0:00:13.7]} 31. Qc4 {[%clk 0:00:08.2]} 31... Nd2 {[%clk 0:00:13.1]}
32. Qc8 {[%clk 0:00:07.4]} 32... Ra3 {[%clk 0:00:10.8]} 33. Kg2 {[%clk
0:00:06.6]} 33... Rxb3 {[%clk 0:00:10.8]} 34. Nd7 {[%clk 0:00:05.2]} 34... Nxd7
{[%clk 0:00:10.4]} 35. Qxd7 {[%clk 0:00:05.1]} 35... Rd3 {[%clk 0:00:11]} 36.
Qd8 {[%clk 0:00:03.5]} 36... Nf3 {[%clk 0:00:10.8]} 37. Kf2 {[%clk 0:00:01.7]}
37... Nxd4 {[%clk 0:00:11]} 38. Qb8 {[%clk 0:00:01.1]} 38... Nc6 {[%clk
0:00:09.5]} 0-1